Workbook

Sheet Feuil1
A1: 42319.57671 | D1: x | E1: y | G1: x_o | H1: y_o | L1: Connaissances de base
B2: Heures | C2: =IF(HOUR(h_ref)+C3/60>12,HOUR(h_ref)+C3/60-12,HOUR(h_ref)+C3/60) -> 1.833333333 | D2: =COS(RADIANS(90-($C2*30)))*0.55 -> 0.4505336244 | E2: =SIN(RADIANS(90-($C2*30)))*0.55 -> 0.31546704 | G2: 0 | H2: 0 | L2: Un tour complet = 360° Ou 2PI() rad
B3: Minutes | C3: =MINUTE(h_ref) -> 50 | D3: =COS(RADIANS(90-($C3*6)))*0.7 -> -0.6062177826 | E3: =SIN(RADIANS(90-($C3*6)))*0.7 -> 0.35 | L3: 1 Seconde = 360°/60 | N3: = 6°
B4: Secondes | C4: =SECOND(h_ref) -> 28 | D4: =COS(RADIANS(90-($C4*6)))*0.95 -> 0.1975161063 | E4: =SIN(RADIANS(90-($C4*6)))*0.95 -> -0.9292402207 | L4: 1 Minute = 360°/60 | N4: = 6°
L5: 1 Heure = 360°/12 | N5: = 30°
A6: cadran_min_sec | E6: cercle_seconde | H6: cadran_heures
A7: sec/min | B7: X | C7: Y | E7: x | F7: y | H7: heure | I7: X | J7: Y
A8: 0 | B8: =COS(RADIANS(90-($A8*6))) -> 6.125742275e-17 | C8: =SIN(RADIANS(90-($A8*6))) -> 1 | E8: 0 | F8: 1 | H8: 0 | I8: =COS(RADIANS(90-($H8*30)))*0.9 -> 5.513168047e-17 | J8: =SIN(RADIANS(90-($H8*30)))*0.9 -> 0.9
A9: 1 | B9: =COS(RADIANS(90-($A9*6))) -> 0.1045284633 | C9: =SIN(RADIANS(90-($A9*6))) -> 0.9945218954 | E9: =+IF($C$4>=$A9,B9,E8) -> 0.1045284633 | F9: =+IF($C$4>=$A9,C9,F8) -> 0.9945218954 | H9: 1 | I9: =COS(RADIANS(90-($H9*30)))*0.9 -> 0.45 | J9: =SIN(RADIANS(90-($H9*30)))*0.9 -> 0.7794228634
A10: 2 | B10: 0.2079116908 | C10: 0.9781476007 | E10: =+IF($C$4>=$A10,B10,E9) -> 0.2079116908 | F10: 0.9781476007 | H10: 2 | I10: 0.7794228634 | J10: 0.45
A11: 3 | B11: 0.3090169944 | C11: 0.9510565163 | E11: 0.3090169944 | F11: 0.9510565163 | H11: 3 | I11: 0.9 | J11: 0
A12: 4 | B12: 0.4067366431 | C12: 0.9135454576 | E12: 0.4067366431 | F12: 0.9135454576 | H12: 4 | I12: 0.7794228634 | J12: -0.45
A13: 5 | B13: 0.5 | C13: 0.8660254038 | E13: 0.5 | F13: 0.8660254038 | H13: 5 | I13: 0.45 | J13: -0.7794228634
A14: 6 | B14: 0.5877852523 | C14: 0.8090169944 | E14: 0.5877852523 | F14: 0.8090169944 | H14: 6 | I14: 5.513168047e-17 | J14: -0.9
A15: 7 | B15: 0.6691306064 | C15: 0.7431448255 | E15: 0.6691306064 | F15: 0.7431448255 | H15: 7 | I15: -0.45 | J15: -0.7794228634
A16: 8 | B16: 0.7431448255 | C16: 0.6691306064 | E16: 0.7431448255 | F16: 0.6691306064 | H16: 8 | I16: -0.7794228634 | J16: -0.45
A17: 9 | B17: 0.8090169944 | C17: 0.5877852523 | E17: 0.8090169944 | F17: 0.5877852523 | H17: 9 | I17: -0.9 | J17: -1.102633609e-16
A18: 10 | B18: 0.8660254038 | C18: 0.5 | E18: 0.8660254038 | F18: 0.5 | H18: 10 | I18: -0.7794228634 | J18: 0.45
A19: 11 | B19: 0.9135454576 | C19: 0.4067366431 | E19: 0.9135454576 | F19: 0.4067366431 | H19: 11 | I19: -0.45 | J19: 0.7794228634
A20: 12 | B20: 0.9510565163 | C20: 0.3090169944 | E20: 0.9510565163 | F20: 0.3090169944
A21: 13 | B21: 0.9781476007 | C21: 0.2079116908 | E21: 0.9781476007 | F21: 0.2079116908
A22: 14 | B22: 0.9945218954 | C22: 0.1045284633 | E22: 0.9945218954 | F22: 0.1045284633 | H22: sec/min | I22: X | J22: Y
A23: 15 | B23: 1 | C23: 0 | E23: 1 | F23: 0 | H23: 0 | I23: =COS(RADIANS(90-($A8*6)))*0.9 -> 5.513168047e-17 | J23: =SIN(RADIANS(90-($A8*6)))*0.9 -> 0.9
A24: 16 | B24: 0.9945218954 | C24: -0.1045284633 | E24: 0.9945218954 | F24: -0.1045284633 | H24: 1 | I24: =COS(RADIANS(90-($A9*6)))*0.9 -> 0.09407561694 | J24: =SIN(RADIANS(90-($A9*6)))*0.9 -> 0.8950697058
A25: 17 | B25: 0.9781476007 | C25: -0.2079116908 | E25: 0.9781476007 | F25: -0.2079116908 | H25: 2 | I25: 0.1871205217 | J25: 0.8803328407
A26: 18 | B26: 0.9510565163 | C26: -0.3090169944 | E26: 0.9510565163 | F26: -0.3090169944 | H26: 3 | I26: 0.2781152949 | J26: 0.8559508647
A27: 19 | B27: 0.9135454576 | C27: -0.4067366431 | E27: 0.9135454576 | F27: -0.4067366431 | H27: 4 | I27: 0.3660629788 | J27: 0.8221909119
A28: 20 | B28: 0.8660254038 | C28: -0.5 | E28: 0.8660254038 | F28: -0.5 | H28: 5 | I28: 0.45 | J28: 0.7794228634
A29: 21 | B29: 0.8090169944 | C29: -0.5877852523 | E29: 0.8090169944 | F29: -0.5877852523 | H29: 6 | I29: 0.5290067271 | J29: 0.7281152949
A30: 22 | B30: 0.7431448255 | C30: -0.6691306064 | E30: 0.7431448255 | F30: -0.6691306064 | H30: 7 | I30: 0.6022175457 | J30: 0.6688303429
A31: 23 | B31: 0.6691306064 | C31: -0.7431448255 | E31: 0.6691306064 | F31: -0.7431448255 | H31: 8 | I31: 0.6688303429 | J31: 0.6022175457
A32: 24 | B32: 0.5877852523 | C32: -0.8090169944 | E32: 0.5877852523 | F32: -0.8090169944 | H32: 9 | I32: 0.7281152949 | J32: 0.5290067271
A33: 25 | B33: 0.5 | C33: -0.8660254038 | E33: 0.5 | F33: -0.8660254038 | H33: 10 | I33: 0.7794228634 | J33: 0.45
A34: 26 | B34: 0.4067366431 | C34: -0.9135454576 | E34: 0.4067366431 | F34: -0.9135454576 | H34: 11 | I34: 0.8221909119 | J34: 0.3660629788
A35: 27 | B35: 0.3090169944 | C35: -0.9510565163 | E35: 0.3090169944 | F35: -0.9510565163 | H35: 12 | I35: 0.8559508647 | J35: 0.2781152949
A36: 28 | B36: 0.2079116908 | C36: -0.9781476007 | E36: 0.2079116908 | F36: -0.9781476007 | H36: 13 | I36: 0.8803328407 | J36: 0.1871205217
A37: 29 | B37: 0.1045284633 | C37: -0.9945218954 | E37: 0.2079116908 | F37: -0.9781476007 | H37: 14 | I37: 0.8950697058 | J37: 0.09407561694
A38: 30 | B38: 6.125742275e-17 | C38: -1 | E38: 0.2079116908 | F38: -0.9781476007 | H38: 15 | I38: 0.9 | J38: 0
A39: 31 | B39: -0.1045284633 | C39: -0.9945218954 | E39: 0.2079116908 | F39: -0.9781476007 | H39: 16 | I39: 0.8950697058 | J39: -0.09407561694
A40: 32 | B40: -0.2079116908 | C40: -0.9781476007 | E40: 0.2079116908 | F40: -0.9781476007 | H40: 17 | I40: 0.8803328407 | J40: -0.1871205217
A41: 33 | B41: -0.3090169944 | C41: -0.9510565163 | E41: 0.2079116908 | F41: -0.9781476007 | H41: 18 | I41: 0.8559508647 | J41: -0.2781152949
A42: 34 | B42: -0.4067366431 | C42: -0.9135454576 | E42: 0.2079116908 | F42: -0.9781476007 | H42: 19 | I42: 0.8221909119 | J42: -0.3660629788
A43: 35 | B43: -0.5 | C43: -0.8660254038 | E43: 0.2079116908 | F43: -0.9781476007 | H43: 20 | I43: 0.7794228634 | J43: -0.45
A44: 36 | B44: -0.5877852523 | C44: -0.8090169944 | E44: 0.2079116908 | F44: -0.9781476007 | H44: 21 | I44: 0.7281152949 | J44: -0.5290067271
A45: 37 | B45: -0.6691306064 | C45: -0.7431448255 | E45: 0.2079116908 | F45: -0.9781476007 | H45: 22 | I45: 0.6688303429 | J45: -0.6022175457
A46: 38 | B46: -0.7431448255 | C46: -0.6691306064 | E46: 0.2079116908 | F46: -0.9781476007 | H46: 23 | I46: 0.6022175457 | J46: -0.6688303429
A47: 39 | B47: -0.8090169944 | C47: -0.5877852523 | E47: 0.2079116908 | F47: -0.9781476007 | H47: 24 | I47: 0.5290067271 | J47: -0.7281152949
A48: 40 | B48: -0.8660254038 | C48: -0.5 | E48: 0.2079116908 | F48: -0.9781476007 | H48: 25 | I48: 0.45 | J48: -0.7794228634
A49: 41 | B49: -0.9135454576 | C49: -0.4067366431 | E49: 0.2079116908 | F49: -0.9781476007 | H49: 26 | I49: 0.3660629788 | J49: -0.8221909119
A50: 42 | B50: -0.9510565163 | C50: -0.3090169944 | E50: 0.2079116908 | F50: -0.9781476007 | H50: 27 | I50: 0.2781152949 | J50: -0.8559508647
A51: 43 | B51: -0.9781476007 | C51: -0.2079116908 | E51: 0.2079116908 | F51: -0.9781476007 | H51: 28 | I51: 0.1871205217 | J51: -0.8803328407
A52: 44 | B52: -0.9945218954 | C52: -0.1045284633 | E52: 0.2079116908 | F52: -0.9781476007 | H52: 29 | I52: 0.09407561694 | J52: -0.8950697058
A53: 45 | B53: -1 | C53: -1.225148455e-16 | E53: 0.2079116908 | F53: -0.9781476007 | H53: 30 | I53: 5.513168047e-17 | J53: -0.9
A54: 46 | B54: -0.9945218954 | C54: 0.1045284633 | E54: 0.2079116908 | F54: -0.9781476007 | H54: 31 | I54: -0.09407561694 | J54: -0.8950697058
A55: 47 | B55: -0.9781476007 | C55: 0.2079116908 | E55: 0.2079116908 | F55: -0.9781476007 | H55: 32 | I55: -0.1871205217 | J55: -0.8803328407
A56: 48 | B56: -0.9510565163 | C56: 0.3090169944 | E56: 0.2079116908 | F56: -0.9781476007 | H56: 33 | I56: -0.2781152949 | J56: -0.8559508647
A57: 49 | B57: -0.9135454576 | C57: 0.4067366431 | E57: 0.2079116908 | F57: -0.9781476007 | H57: 34 | I57: -0.3660629788 | J57: -0.8221909119
A58: 50 | B58: -0.8660254038 | C58: 0.5 | E58: 0.2079116908 | F58: -0.9781476007 | H58: 35 | I58: -0.45 | J58: -0.7794228634
A59: 51 | B59: -0.8090169944 | C59: 0.5877852523 | E59: 0.2079116908 | F59: -0.9781476007 | H59: 36 | I59: -0.5290067271 | J59: -0.7281152949
A60: 52 | B60: -0.7431448255 | C60: 0.6691306064 | E60: 0.2079116908 | F60: -0.9781476007 | H60: 37 | I60: -0.6022175457 | J60: -0.6688303429
A61: 53 | B61: -0.6691306064 | C61: 0.7431448255 | E61: 0.2079116908 | F61: -0.9781476007 | H61: 38 | I61: -0.6688303429 | J61: -0.6022175457
A62: 54 | B62: -0.5877852523 | C62: 0.8090169944 | E62: 0.2079116908 | F62: -0.9781476007 | H62: 39 | I62: -0.7281152949 | J62: -0.5290067271
A63: 55 | B63: -0.5 | C63: 0.8660254038 | E63: 0.2079116908 | F63: -0.9781476007 | H63: 40 | I63: -0.7794228634 | J63: -0.45
A64: 56 | B64: -0.4067366431 | C64: 0.9135454576 | E64: 0.2079116908 | F64: -0.9781476007 | H64: 41 | I64: -0.8221909119 | J64: -0.3660629788
A65: 57 | B65: -0.3090169944 | C65: 0.9510565163 | E65: 0.2079116908 | F65: -0.9781476007 | H65: 42 | I65: -0.8559508647 | J65: -0.2781152949
A66: 58 | B66: -0.2079116908 | C66: 0.9781476007 | E66: 0.2079116908 | F66: -0.9781476007 | H66: 43 | I66: -0.8803328407 | J66: -0.1871205217
A67: 59 | B67: -0.1045284633 | C67: 0.9945218954 | E67: =+IF($C$4>=$A67,0,E66) -> 0.2079116908 | F67: =+IF($C$4>=$A67,1,F66) -> -0.9781476007 | H67: 44 | I67: -0.8950697058 | J67: -0.09407561694
A68: 60 | B68: 0 | C68: 1 | H68: 45 | I68: -0.9 | J68: -1.102633609e-16
H69: 46 | I69: -0.8950697058 | J69: 0.09407561694
H70: 47 | I70: -0.8803328407 | J70: 0.1871205217
H71: 48 | I71: -0.8559508647 | J71: 0.2781152949
H72: 49 | I72: -0.8221909119 | J72: 0.3660629788
H73: 50 | I73: -0.7794228634 | J73: 0.45
H74: 51 | I74: -0.7281152949 | J74: 0.5290067271
H75: 52 | I75: -0.6688303429 | J75: 0.6022175457
H76: 53 | I76: -0.6022175457 | J76: 0.6688303429
H77: 54 | I77: -0.5290067271 | J77: 0.7281152949
H78: 55 | I78: -0.45 | J78: 0.7794228634
H79: 56 | I79: -0.3660629788 | J79: 0.8221909119
H80: 57 | I80: -0.2781152949 | J80: 0.8559508647
H81: 58 | I81: -0.1871205217 | J81: 0.8803328407
H82: 59 | I82: -0.09407561694 | J82: 0.8950697058
H83: 60 | I83: -1.653950414e-16 | J83: 0.9
